fUSD/lending_fUSD_20250407
["ID","MTS","AMOUNT","RATE_DAILY","PERIOD"]
[357310952,1744004331703,-500.0,0.00052876,120]
[357310953,1744004331772,-500.0,0.00052876,120]
[357310954,1744004331841,-528.41,0.00052876,120]
[357310955,1744004331903,-23119.87,0.00052876,120]
[357310956,1744004331963,-500.0,0.00052876,120]
[357310957,1744004332027,-576.76,0.00052876,120]
[357310958,1744004332095,-500.0,0.00052876,120]
[357310959,1744004332156,-500.0,0.00052876,120]
[357310960,1744004332218,-500.0,0.00052876,120]
[357310961,1744004332284,-598.2,0.00052876,120]
[357310962,1744004332347,-920.78,0.00052876,120]
[357310963,1744004332409,-500.0,0.00052876,120]
[357310964,1744004332468,-1760.18,0.00052876,120]
[357310965,1744004332652,-545.51767861,0.00052876,120]
[357310966,1744004332744,-1249.45778086,0.00052999,120]
[357310967,1744004332803,-1249.45778086,0.00052999,120]
[357310968,1744004332860,-1249.45778086,0.00052999,120]
[357310969,1744004332918,-500.0,0.00053,120]
[357310970,1744004332974,-3500.7,0.00053,120]
[357310971,1744004333032,-500.0,0.00053,120]
[357310972,1744004333092,-3000.0,0.00053,120]
[357310973,1744004333156,-1000.0,0.00053,120]
[357310974,1744004333217,-1000.0,0.00053,120]
[357310975,1744004333276,-1000.0,0.00053,120]
[357310976,1744004333336,-1000.0,0.00053,120]
[357310977,1744004333401,-1000.0,0.00053,120]
[357310978,1744004333470,-1000.0,0.00053,120]
[357310979,1744004333532,-1000.0,0.00053,120]
[357310980,1744004333593,-1000.0,0.00053,120]
[357310981,1744004333658,-1000.0,0.00053,120]
[357310982,1744004333721,-1000.0,0.00053,120]
[357310983,1744004333782,-2530.31,0.00053,60]
[357310984,1744004333841,-500.0,0.00053,120]
[357310985,1744004333900,-250.0,0.00053,54]
[357310986,1744004333960,-151.0,0.00053123,120]
[357310987,1744004334018,-1607.14,0.0005315,120]
[357310988,1744004334078,-529.56,0.0005315,120]
[357310989,1744004334152,-1873.68,0.0005315,120]
[357310990,1744004334217,-500.0,0.0005315,120]
[357310991,1744004334280,-500.0,0.0005315,120]
[357310992,1744004334345,-500.0,0.0005315,120]
[357310993,1744004334413,-500.0,0.0005315,120]
[357310994,1744004334480,-500.0,0.0005315,120]
[357310995,1744004334548,-500.0,0.0005315,120]
[357310996,1744004334607,-171.14915799,0.0005315,120]
[357310997,1744004334667,-1225.53,0.0005315,120]
[357310998,1744004334728,-500.0,0.0005315,120]
[357310999,1744004334797,-500.0,0.0005315,120]
[357311000,1744004334862,-760.28,0.0005315,120]
[357311001,1744004334924,-500.0,0.0005315,120]
[357311002,1744004334985,-500.0,0.0005315,120]
[357311003,1744004335051,-500.0,0.0005315,120]
[357311004,1744004335116,-835.94,0.0005315,120]
[357311005,1744004335179,-500.0,0.0005315,120]
[357311006,1744004335242,-596.65,0.0005315,120]
[357311007,1744004335309,-800.51,0.0005315,120]
[357311008,1744004335374,-646.46,0.0005315,120]
[357311009,1744004335446,-500.0,0.0005315,120]
[357311010,1744004335511,-797.82,0.0005315,120]
[357311011,1744004335577,-698.98,0.0005315,120]
[357311012,1744004335643,-669.44,0.0005315,120]
[357311013,1744004335709,-2707.98,0.0005315,120]
[357311014,1744004335776,-528.21742357,0.0005315,120]
[357311015,1744004335839,-500.0,0.0005315,120]
[357311016,1744004335906,-500.0,0.0005315,120]
[357311017,1744004335971,-500.0,0.0005315,120]
[357311018,1744004336034,-500.0,0.0005315,120]
[357311019,1744004336100,-524.26,0.0005315,120]
[357311020,1744004336168,-2353.85,0.0005315,120]
[357311021,1744004336234,-987.22,0.0005315,120]
[357311022,1744004336304,-500.0,0.0005315,120]
[357311023,1744004336370,-500.0,0.0005315,120]
[357311024,1744004336435,-500.0,0.0005315,120]
[357311025,1744004336501,-500.0,0.0005315,120]
[357311026,1744004336563,-551.53,0.0005315,120]
[357311027,1744004336626,-678.92,0.0005315,120]
[357311028,1744004336689,-500.0,0.0005315,120]
[357311029,1744004336757,-761.56,0.0005315,120]
[357311030,1744004336820,-526.71,0.0005315,30]
[357311031,1744004336880,-500.0,0.0005315,120]
[357311032,1744004336943,-515.69,0.0005315,120]
[357311033,1744004337007,-607.42,0.0005315,120]
[357311034,1744004337070,-1141.72,0.0005315,120]
[357311035,1744004337133,-500.0,0.0005315,120]
[357311036,1744004337195,-836.39,0.0005315,120]
[357311037,1744004337257,-500.0,0.0005315,120]
[357311038,1744004337318,-362.74719325,0.0005315,120]
[357311039,1744004337383,-500.0,0.0005315,120]
[357311040,1744004337447,-1188.09,0.0005315,120]
[357311041,1744004337509,-500.0,0.0005315,120]
[357311042,1744004337572,-500.0,0.0005315,120]
[357311043,1744004337634,-869.5,0.0005315,120]
[357311044,1744004337698,-193.58704585,0.0005315,120]
[357311045,1744004337767,-500.0,0.0005315,120]
[357311046,1744004337832,-500.0,0.0005315,120]
[357311047,1744004337896,-319.18,0.0005315,120]
[357311048,1744004337957,-891.76,0.0005315,120]
[357311049,1744004338019,-543.86,0.0005315,120]
[357311050,1744004338081,-1131.81,0.0005315,120]
[357311051,1744004338150,-642.12,0.0005315,120]
[357311052,1744004338217,-801.0,0.0005315,120]
[357311053,1744004338284,-500.0,0.0005315,120]
[357311054,1744004338365,-603.59,0.0005315,120]
[357311055,1744004338445,-1604.32,0.0005315,120]
[357311056,1744004338510,-565.78,0.0005315,120]
[357311057,1744004338570,-695.39,0.0005315,120]
[357311058,1744004338632,-516.92,0.0005315,120]
[357311059,1744004338695,-2327.34,0.0005315,120]
[357311060,1744004338976,-3568.12,0.0005315,120]
[357311061,1744004339042,-500.0,0.0005315,120]
[357311062,1744004339109,-500.0,0.0005315,120]
[357311063,1744004339175,-500.0,0.0005315,120]
[357311064,1744004339240,-500.0,0.0005315,120]
[357311065,1744004339306,-500.0,0.0005315,120]
[357311066,1744004339372,-536.42,0.0005315,120]
[357311067,1744004339439,-500.0,0.0005315,120]
[357311068,1744004339503,-643.55100422,0.0005315,120]
[357311069,1744004339567,-500.0,0.0005315,120]
[357311070,1744004339629,-500.0,0.0005315,120]
[357311071,1744004339695,-1483.35,0.0005315,120]
[357311072,1744004339761,-500.0,0.0005315,120]
[357311073,1744004339823,-902.71,0.0005315,120]
[357311074,1744004339883,-500.0,0.0005315,120]
[357311075,1744004339944,-4838.43,0.0005315,120]
[357311076,1744004340006,-521.52,0.0005315,120]
[357311077,1744004340071,-500.0,0.0005315,120]
[357311078,1744004340135,-500.0,0.0005315,120]
[357311079,1744004340200,-500.0,0.0005315,120]
[357311080,1744004340275,-500.0,0.0005315,120]
[357311081,1744004340344,-1085.1,0.0005315,120]
[357311082,1744004340412,-500.0,0.0005315,120]
[357311083,1744004340480,-757.6,0.0005315,120]
[357311084,1744004340549,-592.42177101,0.0005315,120]
[357311085,1744004340614,-500.0,0.0005315,120]
[357311086,1744004340679,-528.41,0.0005315,120]
[357311087,1744004340751,-23119.87,0.0005315,120]
[357311088,1744004340811,-500.0,0.0005315,120]
[357311089,1744004340868,-576.76,0.0005315,120]
[357311090,1744004340925,-500.0,0.0005315,120]
[357311091,1744004340984,-500.0,0.0005315,120]
[357311092,1744004341046,-500.0,0.0005315,120]
[357311093,1744004341104,-598.2,0.0005315,120]
[357311094,1744004341163,-920.78,0.0005315,120]
[357311095,1744004341219,-500.0,0.0005315,120]
[357311096,1744004341278,-1760.18,0.0005315,120]
[357311097,1744004341337,-1607.14,0.00053424,120]
[357311098,1744004341399,-500.0,0.00053424,30]
[357311099,1744004341456,-529.56,0.00053424,120]
[357311100,1744004341513,-1873.68,0.00053424,120]
[357311101,1744004341572,-536.41874062,0.00053424,120]
[357311102,1744004341632,-500.0,0.00053424,120]
[357311103,1744004341694,-500.0,0.00053424,120]
[357311104,1744004341765,-500.0,0.00053424,120]
[357311105,1744004341833,-500.0,0.00053424,120]
[357311106,1744004341895,-500.0,0.00053424,120]
[357311107,1744004341955,-1225.53,0.00053424,120]
[357311108,1744004342013,-500.0,0.00053424,120]
[357311109,1744004342073,-500.0,0.00053424,120]
[357311110,1744004342139,-760.28,0.00053424,120]
[357311111,1744004342207,-500.0,0.00053424,120]
[357311112,1744004342274,-500.0,0.00053424,120]
[357311113,1744004342339,-500.0,0.00053424,120]
[357311114,1744004342408,-835.94,0.00053424,120]
[357311115,1744004342480,-185.70997294,0.00053424,120]
[357311116,1744004342551,-596.65,0.00053424,120]
[357311117,1744004342617,-800.51,0.00053424,120]
[357311118,1744004342682,-646.46,0.00053424,120]
[357311119,1744004342748,-500.0,0.00053424,120]
[357311120,1744004342813,-797.82,0.00053424,120]
[357311121,1744004342875,-698.98,0.00053424,120]
[357311122,1744004342953,-669.44,0.00053424,120]
[357311123,1744004343025,-2707.98,0.00053424,120]
[357311124,1744004343096,-500.0,0.00053424,120]
[357311125,1744004343165,-448.3855583,0.00053424,120]
[357311126,1744004343236,-500.0,0.00053424,120]
[357311127,1744004343319,-237.360001,0.00053424,120]
[357311128,1744004343391,-524.26,0.00053424,120]
[357311129,1744004343461,-2353.85,0.00053424,120]
[357311130,1744004343528,-987.22,0.00053424,120]
[357311131,1744004343596,-500.0,0.00053424,120]
[357311132,1744004343661,-500.0,0.00053424,120]
[357311133,1744004343728,-500.0,0.00053424,120]
[357311134,1744004343793,-500.0,0.00053424,120]
[357311135,1744004343858,-551.53,0.00053424,120]
[357311136,1744004343921,-678.92,0.00053424,120]
[357311137,1744004343986,-500.0,0.00053424,120]
[357311138,1744004344054,-761.56,0.00053424,120]
[357311139,1744004344121,-526.71,0.00053424,30]
[357311140,1744004344188,-500.0,0.00053424,120]
[357311141,1744004344262,-515.69,0.00053424,120]
[357311142,1744004344334,-607.42,0.00053424,120]
[357311143,1744004344405,-1141.72,0.00053424,120]
[357311144,1744004344476,-500.0,0.00053424,120]
[357311145,1744004344547,-836.39,0.00053424,120]
[357311146,1744004344616,-500.0,0.00053424,120]
[357311147,1744004344685,-536.46917508,0.00053424,120]
[357311148,1744004344758,-1188.09,0.00053424,120]
[357311149,1744004344845,-500.0,0.00053424,120]
[357311150,1744004344909,-500.0,0.00053424,120]
[357311151,1744004344970,-869.5,0.00053424,120]
[357311152,1744004345030,-527.05274948,0.00053424,120]
[357311153,1744004345089,-539.34504295,0.00053424,120]
[357311154,1744004345150,-319.18,0.00053424,120]
[357311155,1744004345513,-891.76,0.00053424,120]
[357311156,1744004345590,-543.86,0.00053424,120]
[357311157,1744004345669,-1131.81,0.00053424,120]
[357311158,1744004345746,-642.12,0.00053424,120]
[357311159,1744004345830,-801.0,0.00053424,120]
[357311160,1744004345902,-500.0,0.00053424,120]
[357311161,1744004345968,-603.59,0.00053424,120]
[357311162,1744004346032,-1604.32,0.00053424,120]
[357311163,1744004346101,-565.78,0.00053424,120]
[357311164,1744004346169,-695.39,0.00053424,120]
[357311165,1744004346241,-516.92,0.00053424,120]
[357311166,1744004346326,-2327.34,0.00053424,120]
[357311167,1744004346398,-3568.12,0.00053424,120]
[357311168,1744004346474,-500.0,0.00053424,120]
[357311169,1744004346542,-500.0,0.00053424,120]
[357311170,1744004346611,-412.74157183,0.00053424,120]
[357311171,1744004346682,-500.0,0.00053424,120]
[357311172,1744004346768,-500.0,0.00053424,120]
[357311173,1744004346844,-536.42,0.00053424,120]
[357311174,1744004346915,-500.0,0.00053424,120]
[357311175,1744004346986,-500.0,0.00053424,120]
[357311176,1744004347058,-500.0,0.00053424,120]
[357311177,1744004347126,-1483.35,0.00053424,120]
[357311178,1744004347193,-500.0,0.00053424,120]
[357311179,1744004347268,-902.71,0.00053424,120]
[357311180,1744004347342,-500.0,0.00053424,120]
[357311181,1744004347418,-4838.43,0.00053424,120]
[357311182,1744004347494,-521.52,0.00053424,120]
[357311183,1744004347573,-500.0,0.00053424,120]
[357311184,1744004347650,-500.0,0.00053424,120]
[357311185,1744004347733,-500.0,0.00053424,120]
[357311186,1744004347815,-500.0,0.00053424,120]
[357311187,1744004347895,-1085.1,0.00053424,120]
[357311188,1744004347970,-500.0,0.00053424,120]
[357311189,1744004348043,-757.6,0.00053424,120]
[357311190,1744004348123,-480.17269948,0.00053424,120]
[357311191,1744004348212,-528.41,0.00053424,120]
[357311192,1744004348294,-23119.87,0.00053424,120]
[357311193,1744004348375,-500.0,0.00053424,120]
[357311194,1744004348455,-576.76,0.00053424,120]
[357311195,1744004348537,-500.0,0.00053424,120]
[357311196,1744004348614,-500.0,0.00053424,120]
[357311197,1744004348696,-500.0,0.00053424,120]
[357311198,1744004348777,-598.2,0.00053424,120]
[357311199,1744004348855,-920.78,0.00053424,120]
[357311200,1744004348934,-500.0,0.00053424,120]
[357311201,1744004349009,-1760.18,0.00053424,120]
[357311202,1744004349080,-152.12,0.00053425,120]
[357311203,1744004349150,-1000.0,0.00053425,60]
[357311204,1744004349218,-1000.0,0.00053425,60]
[357311205,1744004349287,-1000.0,0.00053425,60]
[357311206,1744004349359,-1000.0,0.00053425,60]
[357311207,1744004349432,-1000.0,0.00053425,60]
[357311208,1744004349508,-1000.0,0.00053425,60]
[357311209,1744004349576,-1000.0,0.00053425,60]
[357311210,1744004349639,-1000.0,0.00053425,60]
[357311211,1744004349704,-1000.0,0.00053425,60]
[357311212,1744004349769,-1000.0,0.00053425,60]
[357311213,1744004349837,-1000.0,0.00053425,60]
[357311214,1744004349910,-1000.0,0.00053425,60]
[357311215,1744004349977,-1000.0,0.00053425,60]
[357311216,1744004350040,-1000.0,0.00053425,60]
[357311217,1744004350106,-1000.0,0.00053425,60]
[357311218,1744004350178,-1000.0,0.00053425,60]
[357311219,1744004350267,-1000.0,0.00053425,60]
[357311220,1744004350349,-1000.0,0.00053425,60]
[357311221,1744004350417,-1000.0,0.00053425,60]
[357311222,1744004350483,-1000.0,0.00053425,60]
[357311223,1744004350554,-803.34,0.00053425,60]
[357311224,1744004350620,-151.0,0.00053479,120]
[357311225,1744004350692,-1607.14,0.00053698,120]
[357311226,1744004350763,-529.56,0.00053698,120]
[357311227,1744004350832,-1873.68,0.00053698,120]
[357311228,1744004350897,-500.0,0.00053698,120]
[357311229,1744004350964,-500.0,0.00053698,120]
[357311230,1744004351025,-500.0,0.00053698,120]
[357311231,1744004351095,-500.0,0.00053698,120]
[357311232,1744004351183,-441.34993725,0.00053698,120]
[357311233,1744004351270,-1225.53,0.00053698,120]
[357311234,1744004351340,-471.14837402,0.00053698,120]
[357311235,1744004351407,-500.0,0.00053698,120]
[357311236,1744004351471,-760.28,0.00053698,120]
[357311237,1744004351538,-500.0,0.00053698,120]
[357311238,1744004351609,-500.0,0.00053698,120]
[357311239,1744004351683,-500.0,0.00053698,120]
[357311240,1744004351754,-835.94,0.00053698,120]
[357311241,1744004351821,-596.65,0.00053698,120]
[357311242,1744004351884,-800.51,0.00053698,120]
[357311243,1744004351950,-646.46,0.00053698,120]
[357311244,1744004352011,-500.0,0.00053698,120]
[357311245,1744004352070,-797.82,0.00053698,120]
[357311246,1744004352134,-698.98,0.00053698,120]
[357311247,1744004352198,-669.44,0.00053698,120]
[357311248,1744004352262,-2707.98,0.00053698,120]
[357311249,1744004352489,-489.44919566,0.00053698,120]
[357311250,1744004352551,-500.0,0.00053698,120]
[357311251,1744004352612,-524.26,0.00053698,120]
[357311252,1744004352672,-2353.85,0.00053698,120]
[357311253,1744004352735,-987.22,0.00053698,120]
[357311254,1744004352794,-500.0,0.00053698,120]
[357311255,1744004352853,-500.0,0.00053698,120]
[357311256,1744004352914,-500.0,0.00053698,120]
[357311257,1744004352973,-500.0,0.00053698,120]
[357311258,1744004353036,-551.53,0.00053698,120]
[357311259,1744004353098,-678.92,0.00053698,120]
[357311260,1744004353159,-500.0,0.00053698,120]
[357311261,1744004353225,-526.71,0.00053698,30]
[357311262,1744004353291,-500.0,0.00053698,120]
[357311263,1744004353356,-761.56,0.00053698,120]
[357311264,1744004353427,-515.69,0.00053698,120]
[357311265,1744004353492,-607.42,0.00053698,120]
[357311266,1744004353556,-1141.72,0.00053698,120]
[357311267,1744004353616,-500.0,0.00053698,120]
[357311268,1744004353680,-836.39,0.00053698,120]
[357311269,1744004353746,-500.0,0.00053698,120]
[357311270,1744004353810,-1188.09,0.00053698,120]
[357311271,1744004353880,-500.0,0.00053698,120]
[357311272,1744004353952,-500.0,0.00053698,120]
[357311273,1744004354021,-869.5,0.00053698,120]
[357311274,1744004354088,-319.18,0.00053698,120]
[357311275,1744004354156,-891.76,0.00053698,120]
[357311276,1744004354224,-543.86,0.00053698,120]
[357311277,1744004354293,-1131.81,0.00053698,120]
[357311278,1744004354365,-642.12,0.00053698,120]
[357311279,1744004354436,-801.0,0.00053698,120]
[357311280,1744004354511,-435.94845914,0.00053698,120]
[357311281,1744004354576,-603.59,0.00053698,120]
[357311282,1744004354641,-1604.32,0.00053698,120]
[357311283,1744004354705,-565.78,0.00053698,120]
[357311284,1744004354766,-695.39,0.00053698,120]
[357311285,1744004354827,-516.92,0.00053698,120]
[357311286,1744004354886,-2327.34,0.00053698,120]
[357311287,1744004354945,-3568.12,0.00053698,120]
[357311288,1744004355004,-500.0,0.00053698,120]
[357311289,1744004355066,-500.0,0.00053698,120]
[357311290,1744004355129,-452.97607859,0.00053698,120]
[357311291,1744004355193,-500.0,0.00053698,120]
[357311292,1744004355259,-536.42,0.00053698,120]
[357311293,1744004355325,-637.64444567,0.00053698,120]
[357311294,1744004355391,-461.54538151,0.00053698,120]
[357311295,1744004355460,-496.33850187,0.00053698,120]
[357311296,1744004355530,-1483.35,0.00053698,120]
[357311297,1744004355594,-500.0,0.00053698,120]
[357311298,1744004355662,-902.71,0.00053698,120]
[357311299,1744004355729,-276.09487014,0.00053698,120]
[357311300,1744004355795,-4838.43,0.00053698,120]
[357311301,1744004355861,-521.52,0.00053698,120]
[357311302,1744004355924,-500.0,0.00053698,120]
[357311303,1744004355987,-500.0,0.00053698,120]
[357311304,1744004356065,-413.08354412,0.00053698,120]
[357311305,1744004356132,-500.0,0.00053698,120]
[357311306,1744004356196,-1085.1,0.00053698,120]
[357311307,1744004356264,-373.46957628,0.00053698,120]
[357311308,1744004356329,-757.6,0.00053698,120]
[357311309,1744004356396,-528.41,0.00053698,120]
[357311310,1744004356464,-23119.87,0.00053698,120]
[357311311,1744004356528,-500.0,0.00053698,120]
[357311312,1744004356589,-576.76,0.00053698,120]
[357311313,1744004356648,-414.7095267,0.00053698,120]
[357311314,1744004356710,-500.0,0.00053698,120]
[357311315,1744004356772,-349.73526452,0.00053698,120]
[357311316,1744004356837,-598.2,0.00053698,120]
[357311317,1744004356900,-920.78,0.00053698,120]
[357311318,1744004356967,-500.0,0.00053698,120]
[357311319,1744004357031,-1760.18,0.00053698,120]
[357311320,1744004357094,-243.30319005,0.00053698,30]
[357311321,1744004357157,-2000.0,0.00053815,120]
[357311322,1744004357218,-500.0,0.00053815,120]
[357311323,1744004357278,-300.0,0.00053816,120]
[357311324,1744004357338,-1607.14,0.00053972,120]
[357311325,1744004357401,-500.0,0.00053972,32]
[357311326,1744004357462,-529.56,0.00053972,120]
[357311327,1744004357521,-1873.68,0.00053972,120]
[357311328,1744004357579,-500.0,0.00053972,120]
[357311329,1744004357636,-500.0,0.00053972,120]
[357311330,1744004357699,-500.0,0.00053972,120]
[357311331,1744004357759,-251.42107063,0.00053972,120]
[357311332,1744004357817,-1225.53,0.00053972,120]
[357311333,1744004357875,-500.0,0.00053972,120]
[357311334,1744004357933,-760.28,0.00053972,120]
[357311335,1744004357992,-500.0,0.00053972,120]
[357311336,1744004358056,-500.0,0.00053972,120]
[357311337,1744004358126,-500.0,0.00053972,120]
[357311338,1744004358195,-835.94,0.00053972,120]
[357311339,1744004358266,-596.65,0.00053972,120]
[357311340,1744004358338,-800.51,0.00053972,120]
[357311341,1744004358408,-646.46,0.00053972,120]
[357311342,1744004358472,-500.0,0.00053972,120]
[357311343,1744004358533,-797.82,0.00053972,120]
[357311344,1744004358791,-698.98,0.00053972,120]
[357311345,1744004358852,-669.44,0.00053972,120]
[357311346,1744004358911,-2707.98,0.00053972,120]
[357311347,1744004358970,-500.0,0.00053972,120]
[357311348,1744004359029,-524.26,0.00053972,120]
[357311349,1744004359090,-2353.85,0.00053972,120]
[357311350,1744004359150,-987.22,0.00053972,120]
[357311351,1744004359210,-500.0,0.00053972,120]
[357311352,1744004359269,-500.0,0.00053972,120]
[357311353,1744004359331,-275.33684146,0.00053972,120]
[357311354,1744004359392,-500.0,0.00053972,120]
[357311355,1744004359453,-551.53,0.00053972,120]
[357311356,1744004359513,-678.92,0.00053972,120]
[357311357,1744004359574,-500.0,0.00053972,120]
[357311358,1744004359636,-526.71,0.00053972,30]
[357311359,1744004359703,-500.0,0.00053972,120]
[357311360,1744004359770,-761.56,0.00053972,120]
[357311361,1744004359835,-515.69,0.00053972,120]
[357311362,1744004359896,-607.42,0.00053972,120]
[357311363,1744004359957,-1141.72,0.00053972,120]
[357311364,1744004360019,-534.68630609,0.00053972,120]
[357311365,1744004360080,-836.39,0.00053972,120]
[357311366,1744004360138,-500.0,0.00053972,120]
[357311367,1744004360198,-1188.09,0.00053972,120]
[357311368,1744004360259,-500.0,0.00053972,120]
[357311369,1744004360321,-500.0,0.00053972,120]
[357311370,1744004360383,-869.5,0.00053972,120]
[357311371,1744004360444,-319.18,0.00053972,120]
[357311372,1744004360507,-891.76,0.00053972,120]
[357311373,1744004360565,-543.86,0.00053972,120]
[357311374,1744004360624,-1131.81,0.00053972,120]
[357311375,1744004360685,-642.12,0.00053972,120]
[357311376,1744004360747,-801.0,0.00053972,120]
[357311377,1744004360805,-603.59,0.00053972,120]
[357311378,1744004360863,-1604.32,0.00053972,120]
[357311379,1744004360921,-565.78,0.00053972,120]
[357311380,1744004360979,-695.39,0.00053972,120]
[357311381,1744004361038,-516.92,0.00053972,120]
[357311382,1744004361104,-2327.34,0.00053972,120]
[357311383,1744004361167,-459.48683154,0.00053972,120]
[357311384,1744004361228,-3568.12,0.00053972,120]
[357311385,1744004361291,-500.0,0.00053972,120]
[357311386,1744004361356,-500.0,0.00053972,120]
[357311387,1744004361419,-536.42,0.00053972,120]
[357311388,1744004361480,-1483.35,0.00053972,120]
[357311389,1744004361541,-500.0,0.00053972,120]
[357311390,1744004361599,-902.71,0.00053972,120]
[357311391,1744004361656,-4838.43,0.00053972,120]
[357311392,1744004361714,-521.52,0.00053972,120]
[357311393,1744004361771,-500.0,0.00053972,120]
[357311394,1744004361830,-500.0,0.00053972,120]
[357311395,1744004361889,-500.0,0.00053972,120]
[357311396,1744004361946,-1085.1,0.00053972,120]
[357311397,1744004362003,-757.6,0.00053972,120]
[357311398,1744004362067,-528.41,0.00053972,120]
[357311399,1744004362129,-23119.87,0.00053972,120]
[357311400,1744004362191,-500.0,0.00053972,120]
[357311401,1744004362250,-576.76,0.00053972,120]
[357311402,1744004362313,-500.0,0.00053972,120]
[357311403,1744004362372,-598.2,0.00053972,120]
[357311404,1744004362434,-920.78,0.00053972,120]
[357311405,1744004362494,-500.0,0.00053972,120]
[357311406,1744004362555,-1760.18,0.00053972,120]
[357311407,1744004362615,-1249.45778086,0.00053999,120]
[357311408,1744004362676,-1249.45778086,0.00053999,120]
[357311409,1744004362737,-1249.45778086,0.00053999,120]
[357311410,1744004362797,-500.0,0.00054,120]
[357311411,1744004362858,-3603.06,0.00054,120]
[357311412,1744004362916,-500.0,0.00054,120]
[357311413,1744004362974,-250.0,0.00054,55]
[357311414,1744004363036,-368212.92301755,0.00054,120]
[357311415,1744004365640,327.77508195,0.00039621,120]
[357311416,1744004369237,-379.761893,0.00019253,2]
[357311417,1744004369302,-250.0,0.0001935,2]
[357311418,1744004369370,-634.3016982,0.00019399,2]
[357311419,1744004369439,-250.0,0.0001972,2]
[357311420,1744004369506,-172.34941772,0.000199,2]
[357311421,1744004369576,-891.2849,0.000199,2]
[357311422,1744004369641,-5129.5467,0.000199,2]
[357311423,1744004369708,-12201.8121,0.000199,2]
[357311424,1744004369777,-167.76241705,0.000199,2]
[357311425,1744004369843,-17550.05362064,0.000199,2]
[357311426,1744004369909,-450.71,0.00019999,2]
[357311427,1744004369967,-205.5346215,0.00019999,2]
[357311428,1744004370029,-197.17326583,0.00019999,2]
[357311429,1744004370091,-1724.0,0.0002,2]
[357311430,1744004370151,-4957398.9952763,0.0002,2]
[357311431,1744004370211,-3447.28620791,0.0002,2]
[357311432,1744004370272,-300.26085753,0.0002,2]
[357311433,1744004370334,-8027.89927503,0.0002,2]
[357311434,1744004370394,-424.64445324,0.0002,4]
[357311435,1744004370457,-21080.85207494,0.0002,2]
[357311436,1744004370519,-243.30319005,0.0002,2]
[357311437,1744004370580,-581.79080885,0.0002,2]
[357311438,1744004370644,-636370.63521247,0.0002,2]
[357311439,1744004370709,-151.0,0.0002,2]
[357311440,1744004370768,-151.0,0.0002,2]
[357311441,1744004370823,-151.0,0.0002,2]
[357311442,1744004370878,-151.0,0.0002,2]
[357311443,1744004370936,-151.91,0.0002,2]
[357311444,1744004370995,-151.91,0.0002,2]
[357311445,1744004371059,-151.91,0.0002,2]
[357311446,1744004371125,-151.91,0.0002,2]
[357311447,1744004371190,-151.91,0.0002,2]
[357311448,1744004371253,-151.91,0.0002,2]
[357311449,1744004371319,-151.91,0.0002,2]
[357311450,1744004371387,-151.91,0.0002,2]
[357311451,1744004371451,-151.91,0.0002,2]